Workbook

Sheet Мониторинг
A1: Показатели ежемесячного мониторинга за | F1: январь 2017 года | J1: (нарастающим итогом с начала года)
F2: (период с начала года, например, январь-апрель 2017 года)
A3: о реализации мероприятий федеральной целевой программы "Повышение безопасности дорожного движения в 2013-2020 годах", финансируемых за счет средств федерального бюджета в 2017 году
C4: Государственный заказчик: | E4: Министерство Российской Федерации по делам гражданской обороны, чрезвычайных ситуаций и ликвидации последствий стихийных бедствий
E5: (государственный заказчик)
P6: тыс. рублей
A7: № п/п | B7: Мероприятие | C7: Объем средств федерального бюджета по постановле-нию Прави-тельства РФ от 03.10.2013 № 864 (в ред. от 11.10.2016 № 1031) | D7: Объем доведенных лимитов бюджетных обязательств по Феде-ральному закону от 19.12.2016 № 415-ФЗ | E7: Процедура заключения государственного контракта | J7: Ход исполнения обязательств по государственному контракту с начала года | O7: Остаток лимитов бюджетных обязательств (столбец 4 - столбец 9) | P7: Этап выполнения мероприятия
E8: Информация о наличии технических заданий (есть/нет) | F8: Информация о размещении конкурсной документации (номер, дата) | G8: №, дата государственного контракта, наименования организаций-исполнителей | H8: Стоимость работ действующего государственного контракта
H9: Всего | I9: в т.ч. предумотрено на 2017 год | J9: Оплаченный аванс | K9: Принято работ по актам выполненных работ | L9: Всего оплачено по контракту (кассовые расходы с начала года) | M9: Остаток средств, подлежащих перечислению (столбец 9 - столбец 12) | N9: Срок исполнения, предусмотрен-ный контрактом
A10: 1 | B10: 2 | C10: 3 | D10: 4 | E10: 5 | F10: 6 | G10: 7 | H10: 8 | I10: 9 | J10: 10 | K10: 11 | L10: 12 | M10: 13 | N10: 14 | O10: 15 | P10: 16
B11: ВСЕГО (НИОКР, прочие нужды) | C11: =C12+C18 -> 243798.3 | D11: =D12+D18 -> 149815.2 | H11: =H12+H18 -> 0 | I11: =I12+I18 -> 0 | J11: =J12+J18 -> 0 | K11: =K12+K18 -> 0 | L11: =L12+L18 -> 0 | M11: =I11-L11 -> 0 | O11: =D11-I11 -> 149815.2
B12: НИОКР, всего | C12: =C14+C16 -> 6212 | D12: =D14+D16 -> 5700 | H12: =H14+H16 -> 0 | I12: =I14+I16 -> 0 | J12: 0 | K12: 0 | L12: 0 | M12: =I12-L12 -> 0 | O12: =D12-I12 -> 5700
B13: в том числе:
A14: 1 | B14: 6/1 «Проведение научных исследований, направленных на совершенствование нормативной и методической базы в области ликвидации последствий дорожно-транспортных происшествий» | C14: =C15 -> 3112 | D14: =D15 -> 2850 | H14: =SUM(H15) -> 0 | I14: =SUM(I15) -> 0 | J14: 0 | K14: 0 | L14: 0 | M14: =I14-L14 -> 0 | O14: =D14-I14 -> 2850
A15: 1.1. | B15: Совершенствование нормативной и методической базы в области организации реагирования и ликвидации последствий дорожно-транспортных происшествий и чрезвычайных ситуаций на автомобильных дорогах субъекта Российской Федерации | C15: 3112 | D15: 2850 | M15: =I15-L15 -> 0 | O15: =D15-I15 -> 2850
A16: 2 | B16: 6/2 «Разработка научно обоснованных предложений по совершенствованию информационно-аналитического обеспечения функционирования системы ликвидации последствий дорожно-транспортных происшествий» | C16: =C17 -> 3100 | D16: =D17 -> 2850 | H16: =SUM(H17) -> 0 | I16: =SUM(I17) -> 0 | J16: 0 | K16: 0 | L16: 0 | M16: =I16-L16 -> 0 | O16: =D16-I16 -> 2850
A17: 2.1. | B17: Разработка научно-обоснованных предложений по совершенствованию информационно-аналитического обеспечения функционирования системы ликвидации последствий дорожно-транспортных происшествий | C17: 3100 | D17: 2850 | M17: =I17-L17 -> 0 | O17: =D17-I17 -> 2850
B18: Прочие нужды, всего | C18: =C21+C33+C35+C38+C40 -> 237586.3 | D18: =D21+D33+D35+D38+D40 -> 144115.2 | H18: =H21+H33+H35+H38+H40 -> 0 | I18: =I21+I33+I35+I38+I40 -> 0 | J18: =J21+J33+J35+J38+J40 -> 0 | K18: =K21+K33+K35+K38+K40 -> 0 | L18: =L21+L33+L35+L38+L40 -> 0 | M18: =I18-L18 -> 0 | O18: =D18-I18 -> 144115.2
B19: в том числе:
M20: =I20-L20 -> 0 | O20: =D20-I20 -> 0
A21: 1 | B21: 6/5 «Внедрение современных образцов специальной техники, инструмента, оборудования и технологий, предназначенных для проведения аварийно-спасательных работ, в подразделения МЧС России, привлекаемые к ликвидации последствий дорожно-транспортных происшествий» | C21: 212016.3 | D21: =SUM(D22:D32) -> 122615.2 | H21: =SUM(H22:H32) -> 0 | I21: =SUM(I22:I32) -> 0 | J21: 0 | K21: 0 | L21: 0 | M21: 0 | O21: 122615.2
A22: 1.1. | B22: Оснащение пожарно-спасательного подразделения МЧС России пожарным аварийно-спасательным автомобилем для ликвидации последствий дорожно-транспортных происшествий (Главное управление МЧС России по Республике Карелия) | D22: 10070 | M22: 0 | O22: 10070
A23: 1.2. | B23: Оснащение пожарно-спасательного подразделения МЧС России пожарным аварийно-спасательным автомобилем для ликвидации последствий дорожно-транспортных происшествий (Главное управление МЧС России по Пензенской области) | D23: 10070 | M23: 0 | O23: 10070
A24: 1.3. | B24: Оснащение пожарно-спасательного подразделения МЧС России пожарным аварийно-спасательным автомобилем для ликвидации последствий дорожно-транспортных происшествий (Главное управление МЧС России по городу Москве | D24: 10070 | M24: 0 | O24: 10070
A25: 1.4. | B25: Оснащение пожарно-спасательного подразделения МЧС России мобильным комплексом обеспечения деятельности высокоманёвренных пожарно-спасательных средств (Главное управление МЧС России по Пензенской области) | D25: 16620 | M25: 0 | O25: 16620
A26: 1.5. | B26: Оснащение пожарно-спасательного подразделения МЧС России мобильным комплексом обеспечения деятельности высокоманёвренных пожарно-спасательных средств (Главное управление МЧС России по Ульяновской области) | D26: 16620 | M26: 0 | O26: 16620
A27: 1.6. | B27: Оснащение пожарно-спасательного подразделения МЧС России мобильным комплексом обеспечения деятельности высокоманёвренных пожарно-спасательных средств (Главное управление МЧС России по Курской области) | D27: 16620 | M27: 0 | O27: 16620
A28: 1.7. | B28: Оснащение пожарно-спасательного подразделения МЧС России автомобилем первой помощи для ликвидации последствий дорожно-транспортных происшествий (Главное управление МЧС России по Пензенской области) | D28: 8075 | M28: 0 | O28: 8075
A29: 1.8. | B29: Оснащение пожарно-спасательного подразделения МЧС России пожарно-спасательным автомобилем с медицинским модулем для ликвидации последствий дорожно-транспортных происшествий (Главное управление МЧС России по Республике Карелия) | D29: 11120 | M29: 0 | O29: 11120
A30: 1.9. | B30: Оснащение пожарно-спасательных подразделений МЧС России мобильными автономными быстро развёртываемыми пунктами обогрева (Главные управления МЧС России по субъектам Российской Федерации) | D30: 10150 | M30: 0 | O30: 10150
A31: 1.10. | B31: Поставка гидравлического аварийно-спасательного инструмента и оборудования для ликвидации последствий дорожно-транспортных происшествий (ФГБВОУ ВО «Академия гражданской защиты МЧС России») | D31: 1200.2 | M31: 0 | O31: 1200.2
A32: 1.11. | B32: Создание и внедрение мобильного программно-технического комплекса обеспечения аварийно-спасательных работ при ликвидации последствий дорожно-транспортных происшествий, в том числе при перевозке опасных грузов (МПТК-АСР-ДТП) | D32: 12000 | M32: 0 | O32: 12000
A33: 2 | B33: 6/6 «Практическая отработка вопросов взаимодействия экстренных служб и проведения аварийно-спасательных работ при ликвидации последствий дорожно-транспортных происшествий» | C33: 3500 | D33: =SUM(D34) -> 3500 | H33: =H34 -> 0 | I33: =I34 -> 0 | J33: 0 | K33: 0 | L33: 0 | M33: 0 | O33: 3500
A34: 2.1. | B34: Организационное и методическое обеспечение подготовки и проведения соревнований в области ликвидации последствий дорожно-транспортных происшествий | D34: 3500 | M34: 0 | O34: 3500
A35: 3 | B35: 6/7 «Организационно-методическое и техническое обеспечение подразделений МЧС России, осуществляющих профессиональную подготовку и повышение квалификации личного состава, принимающего участие в ликвидации дорожно-транспортных происшествий» | C35: 10000 | D35: =SUM(D36:D37) -> 9200 | H35: =SUM(H36:H37) -> 0 | I35: =SUM(I36:I37) -> 0 | J35: 0 | K35: 0 | L35: 0 | M35: 0 | O35: 9200
A36: 3.1. | B36: Организационно-методическое обеспечение пожарно-спасательных подразделений МЧС России, осуществляющих прикрытие автомобильных дорог общего пользования федерального значения между городами-участниками чемпионата мира по футболу 2018 года | D36: 5800 | M36: 0 | O36: 5800
A37: 3.2. | B37: Организационно-методическое и техническое обеспечение процессов обучения на базе учебных центров ФПС МЧС России | D37: 3400 | M37: 0 | O37: 3400
A38: 4 | B38: 6/8 «Участие МЧС России в коммуникативных мероприятиях (конференциях, форумах, выставках и иных общественных мероприятиях) в области безопасности дорожного движения и оказания помощи пострадавшим в дорожно-транспортных происшествиях» | C38: 2900 | D38: =SUM(D39) -> 2650 | H38: =SUM(H39) -> 0 | I38: =SUM(I39) -> 0 | J38: 0 | K38: 0 | L38: 0 | M38: 0 | O38: 2650
A39: 4.1. | B39: Участие МЧС России в коммуникативных мероприятиях (конференциях, форумах, выставках и иных общественных мероприятиях) в области безопасности дорожного движения и оказания помощи пострадавшим в дорожно-транспортных происшествиях | D39: 2650 | M39: 0 | O39: 2650
A40: 5 | B40: 6/9 «Развитие Центра мониторинга ликвидации последствий дорожно-транспортных происшествий МЧС России» | C40: 9170 | D40: 6150 | H40: =SUM(H41) -> 0 | I40: =SUM(I41) -> 0 | J40: 0 | K40: 0 | L40: 0 | M40: =I40-L40 -> 0 | O40: 6150
A41: 5.1. | B41: Развитие Информационно-аналитической системы в области ликвидации последствий дорожно-транспортных происшествий с учётом интеграции с сайтом, содержащим информацию о ситуации на автомобильных дорогах федерального, регионального и межмуниципального значения | D41: 6150 | M41: =I41-L41 -> 0 | O41: 6150
B43: Руководитель
C44: (Должность) | I44: Подпись | N44: (Ф.И.О.)
B46: Исполнитель
C47: (Должность) | I47: Подпись | N47: (Ф.И.О.)
N49: (адрес электронной почты)
N51: (контактный телефон)

Sheet Лист3
E4: 3.1.1) № 0372100035715000063 от 01.06.2015 г. - 15 000,0 тыс. руб. | O4: 15000 | Q4: 15000
E5: 3.1.2) № 0337100007415000052 от 16.06.2015 г. - 12 391,0 тыс. руб. | O5: 12391 | Q5: 12366.9
E6: 3.1.3) № 0372100035715000057 от 28.05.2015 г. - 12 391,0 тыс. руб. | O6: 12391 | Q6: 12391
E7: 3.1.4) № 0321100032715000022 от 30.04.2015 г. - 12 391,0 тыс. руб. | O7: 12391 | Q7: 12328.1
E8: 3.1.5) № 0358100036015000046 от 19.06.2015 г. - 12 391,0 тыс. руб. | O8: 12391 | Q8: 10573
E9: 3.1.6) № 0373100088215000041 от 10.07.2015 г. - 29 367,0 тыс. руб. | O9: 29367 | Q9: 23265.8
E10: 3.1.7) № 0332100030315000051 от 27.05.2015 г. - 29 367,0 тыс. руб. | O10: 29367 | Q10: 29367
E11: 3.1.8) № 0162100022915000056 от 09.05.2015 г.- 15 002,51659 тыс. руб. | O11: 15002.517 | Q11: 15002.6
E12: 3.1.9) № 0373100038715000175 от 24.04.2015 г. - 7 055,0 тыс. руб. | O12: 7055 | Q12: 7055
E13: 3.1.10) № 0162100022915000044 от 08.06.2015 г. - 9 621,66667 тыс. руб. 3.1.11) № 0322100003415000261 от 23.11.2015 г. - 1 316,1 тыс. руб. 3.1.12) № 0319100001315000102 от 23.11.2015 г. - 658,1 тыс. руб. 3.1.13) № 016200022915000101 от 17.11.2015 г. - 1 904,2 тыс. руб. 3.1.14) № 0332100030315000087 от 17.11.2015 г. - 3 290,5 тыс. руб. 3.1.15) № 0373100088215000085 от 09.11.2015 г. - 658,1 тыс. руб. 3.1.16) № 0162100022915000102 от 17.11.2015 г. - 375,5 тыс. руб.
O14: 9621.667 | Q14: 9621.7
O15: 1316.1 | Q15: 1316.1
O16: 658.1 | Q16: 658.1
O17: 1904.2 | Q17: 1974.2
O18: 3290.5 | Q18: 3290.5
O19: 658.1 | Q19: 658.1
O20: 375.5 | Q20: 375.5
O22: =SUM(O4:O20) -> 163179.684 | Q22: =SUM(Q4:Q20) -> 155243.6
O24: 196579.7 | Q24: 33400
Q26: =SUM(Q22:Q24) -> 188643.6

Sheet Лист1

Sheet Свод
A1: Сводная информация по контрактации и кассовому исполнению в рамках реализации государственным заказчиком МЧС России в 2015 году мероприятий федеральной целевой программы "Повышение безопасности дорожного движения в 2013 - 2020 годах" по состоянию на январь - июль 2015 г.
A3: Направление | B3: Финансирование, тыс. руб. | C3: Объявлено | E3: Контрактация | G3: Касса
C4: тыс. руб. | D4: % | E4: тыс. руб. | F4: % | G4: тыс. руб. | H4: %
A5: ГКВ | B5: =Мониторинг!#REF! ->  | C5: =Мониторинг!#REF! ->  | D5: =Мониторинг!#REF!/Мониторинг!#REF! ->  | E5: =Мониторинг!#REF! ->  | F5: =E5/B5 ->  | G5: =Мониторинг!#REF! ->  | H5: =G5/B5 -> 
A6: НИОКР | B6: =Мониторинг!D12 -> 5700 | C6: =Мониторинг!D12 -> 5700 | D6: =Мониторинг!#REF!/Мониторинг!D12 ->  | E6: =Мониторинг!I12 -> 0 | F6: =E6/B6 -> 0 | G6: =Мониторинг!L12 -> 0 | H6: =G6/B6 -> 0
A7: Прочие нужды | B7: =Мониторинг!D18 -> 144115.2 | C7: =Мониторинг!#REF! ->  | D7: =C7/B7 ->  | E7: 139569.8 | F7: =E7/B7 -> 0.9684599543 | G7: =Мониторинг!L18 -> 0 | H7: =G7/B7 -> 0
A8: Всего, тыс. руб. | B8: =SUM(B5:B7) ->  | C8: =SUM(C5:C7) ->  | D8: =C8/B8 ->  | E8: =SUM(E5:E7) ->  | F8: =E8/B8 ->  | G8: =SUM(G5:G7) ->  | H8: =G8/B8 -> 

Sheet Лист2

Sheet Подписанты (hidden)
B1: Руководитель
C2: (Должность) | I2: Подпись | N2: (Ф.И.О.)
B3: Исполнитель
C4: (Должность) | I4: Подпись | N4: (Ф.И.О.)
N6: (адрес электронной почты)
N8: (контактный телефон)
